Cogmind - Beta 12 @@@ ROGUE MODE // 2023.12.23 @ 14:10:55 Player: Ischenous Result: Destroyed by G-34 Mercenary with Small Laser Performance ------------- Evolutions (1) 500 Regions Visited (2) 400 Robots Destroyed (9) 45 Value Destroyed (256) 256 Prototype IDs (0) 0 Alien Tech Used (0) 0 Bonus (0) 0 TOTAL SCORE: 1201 Bonus ------- None Cogmind --------- Core Integrity 0/400 Matter 291/300 Energy 70/100 System Corruption 3% Temperature Cool (6) Movement Core (50) Location -9/Materials Parts ------- > --- POWER (1) -------- (None) > --- PROPULSION (3) --- (None) > --- UTILITY (3) ------ (None) > --- WEAPON (2) ------- (None) > --- INVENTORY (5) ---- (None) Peak State ------------ > --- POWER ------------ Light Ion Engine > --- PROPULSION ------- Wheel > --- UTILITY ---------- Heat Sink Structural Scanner > --- WEAPON ----------- Small Laser Small Laser > --- INVENTORY -------- Ion Engine Light EM Pulse Cannon Autogun [Rating: 6] Favorites ----------- Power Light Ion Engine Engine Light Ion Engine Propulsion Wheel Wheel Wheel Utility Structural Scanner Device Structural Scanner Weapon Small Laser Energy Gun Small Laser Energy Cannon Light EM Pulse Cannon Ballistic Gun Autogun Build | -11 -10 -9 ------- Run | Jun Mat Mat Slots Evolved 2 | . . 2 Power . | . . . Propulsion 1 | . . 1 Utility 1 | . . 1 Weapon . | . . . Parts Attached 15 | 4 . 11 Power 3 | 1 . 2 Engine 3 | 1 . 2 Core . | . . . Reactor . | . . . Propulsion 2 | 1 . 1 Treads . | . . . Leg . | . . . Wheel 2 | 1 . 1 Hover . | . . . Flight . | . . . Utility 3 | . . 3 Device 3 | . . 3 Storage . | . . . Processor . | . . . Hackware . | . . . Protection . | . . . Artifact . | . . . Weapon 7 | 2 . 5 Energy Gun 5 | 2 . 3 Energy Cannon 1 | . . 1 Ballistic Gun 1 | . . 1 Ballistic Cannon . | . . . Launcher . | . . . Special Weapon . | . . . Impact Weapon . | . . . Slashing Weapon . | . . . Piercing Weapon . | . . . Special Melee Weapon . | . . . Unidentified Prototypes . | . . . Parts Lost 11 | . . 11 Power 2 | . . 2 Propulsion 1 | . . 1 Utility 2 | . . 2 Weapon 6 | . . 6 Highest Loss Streak 10 | . . 10 To Critical Strikes . | . . . Average Slot Usage (%) 41 | . 42 41 Engine 3 | . 7 3 Wheel 9 | . 14 9 Device 8 | . . 9 Energy Gun 18 | . 21 18 Naked Turns 13 | . . 13 Heaviest Build 13 | 6 6 13 Greatest Support 10 | 10 10 10 Greatest Overweight (x) 4 | 1 . 4 Average Overweight (x) . | . . . Largest Inventory Capacity 5 | 5 5 5 Average Capacity 5 | 5 5 5 Most Carried 4 | 4 2 4 Average Carried 1 | 1 1 1 Final Capacity 5 | 5 5 5 Final Carried 2 | 1 2 . Class Distribution -------------------- 85% | Mutant 14% | Scavenger-Mutant Dominant Class ---------------- Mutant | -10/Materials Mutant | -9/Materials Resources | -11 -10 -9 ----------- Run | Jun Mat Mat Matter Collected 274 | . 36 238 Remotely . | . . . Salvage Created 328 | . 36 292 Parts 21 | . 2 19 Haulers Intercepted . | . . . Recyclers Shooed . | . . . Parts Field Recycled . | . . . Retrieved Matter . | . . . Parts Self-Destructed . | . . . Prevented . | . . . Kills | -11 -10 -9 ------- Run | Jun Mat Mat Combat Hostiles Destroyed 9 | . 1 8 Guns 9 | . 1 8 Classes Destroyed 3 | . 1 2 Swarmer 3 | . . 3 Grunt 4 | . 1 3 Sentry 2 | . . 2 Best Kill Streak 4 | . 1 4 Combat Bots Only 4 | . 1 4 Max Kills in Single Turn 1 | . 1 1 Gunslinging . | . . . Exploded . | . . . Melee . | . . . Uniques/NPCs Destroyed . | . . . Combat | -11 -10 -9 -------- Run | Jun Mat Mat Damage Taken 1123 | . 36 1087 Core 429 | . 25 404 Absorbed by Shields . | . . . Core Remaining (%) 95 | 100 90 . Volleys Fired 30 | . 2 28 Largest 2 | . 1 2 Hottest 80 | . 40 80 Shots Fired 47 | . 2 45 Gun 43 | . 2 41 Cannon 4 | . . 4 Launcher . | . . . Special . | . . . Kinetic 4 | . . 4 Thermal 39 | . 2 37 Explosive . | . . . Electromagnetic 4 | . . 4 Robot Hit Streak 12 | . 2 12 Robot Miss Streak 5 | . . 5 Penetration Max . | . . . Secondary Targets . | . . . Shots Hit Robots 35 | . 2 33 Core Hits 16 | . 2 14 Critical Kills . | . . . Critical Parts Destroyed . | . . . Critical Strikes 1 | . . 1 Burn 1 | . . 1 Melee Attacks . | . . . Impact . | . . . Slashing . | . . . Piercing . | . . . Sneak Attacks . | . . . Combat Hostiles . | . . . Follow-up Attacks . | . . . Damage Inflicted 509 | . 24 485 Guns 394 | . 24 370 Cannons 84 | . . 84 Explosions . | . . . Melee . | . . . Ramming 31 | . . 31 Kinetic 64 | . . 64 Thermal 330 | . 24 306 Explosive . | . . . Electromagnetic 84 | . . 84 Impact . | . . . Slashing . | . . . Piercing . | . . . Highest Corruption 3 | . . 3 Average Corruption 2 | . . 2 Corruption Purged . | . . . Corruption Blocked . | . . . Overload Shots . | . . . Overflow Damage . | . . . Projectiles . | . . . Explosions . | . . . Melee . | . . . Knockbacks . | . . . Impact . | . . . Kinetic . | . . . Secondary . | . . . Self-Inflicted Damage 14 | . . 14 Shots . | . . . Rammed 7 | . . 7 Targets Rammed 7 | . . 7 Kicked . | . . . Crushed . | . . . Highest Temperature 107 | . 21 107 Average Temperature 35 | . 18 36 Received Heat Transfer 414 | . 21 393 Siege Activations . | . . . Robots Corrupted . | . . . Combat Hostiles . | . . . Parts Fried . | . . . Impact Corruptions . | . . . Robots Melted . | . . . Combat Hostiles . | . . . Parts Melted 2 | . 1 1 Heat Transferred 846 | . 50 796 Parts Sabotaged . | . . . Parts Stolen . | . . . Parts Stripped . | . . . Power Chain Reactions . | . . . Missiles Intercepted . | . . . Alert | -11 -10 -9 ------- Run | Jun Mat Mat Peak Influence 240 | . 75 240 Initial 31 | . . 31 Average 95 | . 36 115 Maximum Alert Level 1 | . . 1 Low Security (%) 82 | 100 100 78 Level 1 17 | . . 21 Level 2 . | . . . Level 3 . | . . . Level 4 . | . . . Level 5 . | . . . High Security . | . . . Max Security . | . . . Squads Dispatched 3 | . 1 2 Investigation . | . . . Extermination . | . . . Reinforcement 3 | . 1 2 Assault . | . . . Garrison . | . . . Intercept . | . . . Searches Triggered . | . . . Construction Impeded . | . . . Haulers Reinforced . | . . . Active Scanning Responses . | . . . Cargo Convoy Interrupts . | . . . Stealth | -11 -10 -9 --------- Run | Jun Mat Mat Distress Signals 3 | . . 3 Communications Jammed . | . . . Distress Signals . | . . . Times Spotted 20 | . 4 16 Peak Tracking Total 7 | . 4 7 Tactical Retreats 1 | . . 1 Traps | -11 -10 -9 ------- Run | Jun Mat Mat Traps Triggered 1 | . 1 . Indirectly . | . . . Trap Hack Attempts . | . . . Triggered . | . . . Disarmed . | . . . Reprogrammed . | . . . Reused . | . . . Traps Extracted . | . . . Installed . | . . . Triggered . | . . . Machines | -11 -10 -9 ---------- Run | Jun Mat Mat Machines Disabled . | . . . Max in Single Turn . | . . . Machines Repaired . | . . . Machines Sabotaged . | . . . Overloaded Fab Kills . | . . . Hacking | -11 -10 -9 --------- Run | Jun Mat Mat Machines Accessed 3 | . . 3 Terminals 2 | . . 2 Fabricators . | . . . Repair Stations . | . . . Recycling Units . | . . . Scanalyzers 1 | . . 1 Garrison Access . | . . . Total Hacks 12 | . . 12 Successful 10 | . . 10 Failed 2 | . . 2 Catastrophic . | . . . Database Lockouts . | . . . Manual 3 | . . 3 Terminals 4 | . . 4 Fabricators . | . . . Repair Stations . | . . . Recycling Units . | . . . Scanalyzers 8 | . . 8 Garrison Access . | . . . Terminal Hacks 2 | . . 2 Record 1 | . . 1 Locate Traps 1 | . . 1 Fabricator Hacks . | . . . Repair Station Hacks . | . . . Recycling Unit Hacks . | . . . Scanalyzer 8 | . . 8 Insert Component 4 | . . 4 Analyze 4 | . . 4 Garrison Access Hacks . | . . . Unauthorized Hacks . | . . . Terminals . | . . . Fabricators . | . . . Repair Stations . | . . . Recycling Units . | . . . Scanalyzers . | . . . Garrison Access . | . . . Data Cores Recovered . | . . . Used . | . . . Hacking Detections 2 | . . 2 Full Trace Events . | . . . Feedback Events . | . . . Feedback Blocked . | . . . Robot Schematics Acquired . | . . . Robots Built . | . . . Authchips . | . . . Time . | . . . Total Robot Build Rating . | . . . Part Schematics Acquired 4 | . . 4 Parts Built . | . . . Authchips . | . . . Time . | . . . Total Part Build Rating . | . . . Parts Repaired . | . . . Time . | . . . Parts Recycled . | . . . Recycled Matter . | . . . Retrieved Matter . | . . . Retrieved Components . | . . . Parts Scanalyzed 4 | . . 4 Part Schematics Acquired 4 | . . 4 Parts Damaged . | . . . Bothacking | -11 -10 -9 ------------ Run | Jun Mat Mat Used RIF Installer . | . . . Robots Hacked . | . . . Non-combat . | . . . Combat . | . . . Robot Hacks Applied . | . . . Relay Couplers Released . | . . . Fabnet Peak Effective % . | . . . Robots Rewired . | . . . Allies Hacked . | . . . Hacks Repelled . | . . . Allies | -11 -10 -9 -------- Run | Jun Mat Mat Total Allies . | . . . Largest Group . | . . . Highest-Rated Group . | . . . Highest-Rated Ally . | . . . Total Orders . | . . . Ally Attacks . | . . . Total Damage . | . . . Kills . | . . . Allies Corrupted . | . . . Allies Melted . | . . . Intel | -11 -10 -9 ------- Run | Jun Mat Mat Robot Analysis Total . | . . . Derelict Logs Recovered . | . . . Drone Launches . | . . . Drone Recoveries . | . . . Exploration | -11 -10 -9 ------------- Run | Jun Mat Mat Turns Passed 366 | 32 44 290 Spaces Moved 306 | 33 49 224 Core 39 | 19 . 20 Treads . | . . . Legs . | . . . Wheels 267 | 14 49 204 Hover . | . . . Flight . | . . . Fastest Speed 50 | 50 80 50 Average Speed 77 | 71 80 78 Slowest Speed 250 | 100 80 250 Overloaded Moves . | . . . Propulsion Burnouts . | . . . Robots Hopped . | . . . Cave-ins Triggered . | . . . Exploration Rate (%) 15 | 4 15 27 Regions Visited 2 Branch Regions . Pre-discovered Areas . | . . . Known Exits Taken . | . . . Unknown Exits Taken 2 | 1 1 . Scrap Searched . | . . . Spaces Dug . | . . . Terrain Destroyed . | . . . Melee . | . . . Projectile . | . . . AOE . | . . . Terrain Rammed . | . . . Walls Destroyed . | . . . Machines Disabled . | . . . Actions | -11 -10 -9 --------- Run | Jun Mat Mat Total 387 | 41 51 295 Wait 16 | . . 16 Move 304 | 32 48 224 Hop . | . . . Pick Up 13 | 5 1 7 Fast Attach . | . . . Attach 15 | 4 . 11 Detach 2 | . . 2 Swap . | . . . Drop . | . . . Fire 30 | . 2 28 Melee . | . . . Ram 7 | . . 7 Kick . | . . . Crush . | . . . Escape Stasis . | . . . Rewire . | . . . Trap . | . . . Miscellaneous . | . . . Route ------- -11/Junkyard -10/Materials -9/Materials (discovered 1 exit: [*Min]) History --------- Turn | Location | Event 17 | -11/Junkyard | Discovered new exit (range 16) 33 | -11/Junkyard | Entered Materials 67 | -10/Materials | Discovered new exit (range 10) 77 | -10/Materials | Entered another Materials area 77 | -9/Materials | Evolved 2 slots: Propulsion x1, Utility x1 344 | -9/Materials | Core integrity fell below 50% 356 | -9/Materials | Core integrity fell below 20% 366 | -9/Materials | Discovered new exit (range 6) 367 | -9/Materials | Destroyed by G-34 Mercenary with Small Laser Last Messages --------------- 00349_ G-34 Mercenary overheating. 00351_ Slammed into G-34 Mercenary. 00351_ M-13 Machinist repairs G-34 Mercenary. 00352_ Beam Rifle destroyed. 00352_ K-01 Serf collects debris. 00352_ Slammed into G-34 Mercenary. 00354_ Slammed into Y-45 Defender. 00354_ Destabilizing: System corrupted (+2). 00354_ Structural Scanner destroyed. 00355_ Slammed into G-34 Mercenary. 00356_ Acquired 50 matter. 00357_ G-34 Mercenary heat damages Sml. Laser. 00358_ K-01 Serf collects debris. 00360_ G-34 Mercenary heat damages Aluminum Leg. 00365_ Slammed into R-06 Scavenger. 00365_ Destabilizing: Core damaged (-8). 00366_ M-13 Machinist repairs Aluminum Leg. 00366_ Slammed into R-06 Scavenger. 00366_ Destabilizing: System corrupted (+1). 00366_ EXIT=FOUND Map ----- +----------------------------------------------------+ | ?????????????????????????????????????????????????? | | ?????????????????????????????????????????????????? | | ?????????????????????????????????????????????????? | | ?????????????????????????????????????????????????? | | ?????????????????????????????????????????????????? | | ?????????????????????????????????????????????????? | | ?????????????????????????????????????????????????? | | ?????????????????????????????????????????????????? | | ?????????????????????????????????????????????????? | | ?????????????????????????????????????????????????? | | ????????????????????????? ??????????????????????? | | ????????????????????????? "?????????????????????? | | ????????????????????????? ""????????????????????? | | ????????????????????????? ????????????????????? | | ????????????????????????? ? ???????? | | ????????????????????????? #?############??? ???? | | ???????????????????????##a #### ##??? ???? | | ???????????????????????# "#! ##??? ##?? | | ???????????????????????# ""# ! ##??? ##?? | | ???????????????????????# ||# ##??? ##?? | | ???????????????????????# < ""# ##??? ##?? | | ??????????????????????## ||# ##?## ##?? | | ??????????????????????## ""# ##?## ##?? | | ????????????????????#### "# ! ##?## #### | | ???????????????###### ###r #### % ##### #### | | ???????????????# #@ #######/#########+## | | ???????????????# """ + # # | | ???????????????# """ # u m # """ # | | ???????????????# """ # Yggo g # """ # | | ???????????????# ###### # """ # | | ???????????????# # # # | | ???????????????# "T" # + """ ##+ | | ???????????????# """ + T # """ # | | ???????????????# # u # """ + T | | ???????????????########## ##### # # | | ???????????????????????####+####### ####+###+## | | ??????????????????????## ??## #### ### | | ??????????????????????## ????????## #### ????? | | ??????????????????????## ????????## #### ????? | | ??????????????????????## ????????# #???????? | | ????????????????????????????????## ???????? | | ????????????????????????????????## ?????? | | ????????????????????????????????## ?????#### | | ????????????????????????????????## ##????? | | ????????????????????????????????#### ##????????? | | ????????????????????????????????#### ##????????? | | ???????????????????????????????????? ##????????? | | ???????????????????????????????????? ??????????? | | ?????????????????????????????????????????????????? | | ?????????????????????????????????????????????????? | +----------------------------------------------------+ Best States ------------- Heat Dissipation 38 Energy Generation 10 Energy Capacity 250 Matter Stores 281 Matter Capacity 300 Sight Range 16 Terrain Scan Density 10 Evasion (%) 50 Item Schematics ----------------- Ion Engine | -9/Materials | Scanalyzed Wheel | -9/Materials | Scanalyzed Structural Scanner | -9/Materials | Scanalyzed Autogun | -9/Materials | Scanalyzed Robot Schematics ------------------ None Fabricated ------------ Nothing Alien Tech Used ----------------- None Achievements -------------- None Challenges ------------ None Game ------ Seed PhasePointyRedirector Manual? 0 Play Time 00:09:42 Cumulative 108.6 hours Start 2023.12.23 @ 14:03:33 End 2023.12.23 @ 14:10:55 Sessions 1 Manual Loads 0 Difficulty Rogue Special Mode None Game No. 97 Rogue 97 Adventurer 0 Explorer 0 Win Type - Total 0 Types 0/0/0/0/0/0/0/0/0 Lore% 35 Gallery% 39 Achievement% 30 Wizard Run 0 Options --------- ASCII 0 Keyboard 0 Movement Arrows Keybinds 0 Fullscreen 1 Font 18/SmallcapsGlow Map View 76x50 Tactical HUD 1 Map Filters NONE Filters NONE Steam 1 RUN: 798876ce-ddcf-4cb7-8cb5-99b61fa01700